fUST/lending_fUST_20250727
["ID","MTS","AMOUNT","RATE_DAILY","PERIOD"]
[375217019,1753589441039,-460.0,0.00019178,2]
[375217021,1753589441051,-460.0,0.00019178,2]
[375217023,1753589441063,-460.0,0.00019178,2]
[375217025,1753589441072,-460.0,0.00019178,2]
[375217027,1753589441082,-460.0,0.00019178,2]
[375217029,1753589441091,-460.0,0.00019178,2]
[375217031,1753589441103,-460.0,0.00019178,2]
[375217032,1753589441112,-460.0,0.00019178,2]
[375217034,1753589441122,-460.0,0.00019178,2]
[375217037,1753589441133,-460.0,0.00019178,2]
[375217039,1753589441142,-2701.43,0.00019178,2]
[375217041,1753589441153,-4829.23,0.00019178,2]
[375217043,1753589441163,-776.0,0.00019178,2]
[375217045,1753589441174,-460.0,0.00019178,2]
[375217047,1753589441186,-460.0,0.00019178,2]
[375217049,1753589441197,-735.29,0.00019178,2]
[375217051,1753589441206,-460.0,0.00019178,2]
[375217053,1753589441216,-460.0,0.00019178,2]
[375217068,1753589441360,-930.6,0.00019178,2]
[375217070,1753589441371,-461.27364902,0.00019178,2]
[375217072,1753589441382,-460.0,0.00019178,2]
[375217074,1753589441391,-460.0,0.00019178,2]
[375217076,1753589441400,-460.0,0.00019178,2]
[375217078,1753589441409,-945.52,0.00019178,2]
[375217080,1753589441419,-460.0,0.00019178,2]
[375217082,1753589441428,-460.0,0.00019178,2]
[375217084,1753589441437,-460.0,0.00019178,2]
[375217086,1753589441447,-665.33,0.00019178,2]
[375217088,1753589441457,-603.09,0.00019178,2]
[375217090,1753589441467,-460.0,0.00019178,2]
[375217092,1753589441478,-1000.32,0.00019178,2]
[375217094,1753589441488,-3600.3,0.00019178,2]
[375217096,1753589441497,-3600.3,0.00019178,2]
[375217098,1753589441507,-460.0,0.00019178,2]
[375217100,1753589441516,-460.0,0.00019178,2]
[375217103,1753589441526,-3600.3,0.00019178,2]
[375217105,1753589441539,-3600.3,0.00019178,2]
[375217107,1753589441549,-3600.3,0.00019178,2]
[375217109,1753589441559,-3600.3,0.00019178,2]
[375217111,1753589441569,-3600.3,0.00019178,2]
[375217113,1753589441578,-3600.3,0.00019178,2]
[375217115,1753589441588,-620.16,0.00019178,2]
[375217117,1753589441598,-3600.3,0.00019178,2]
[375217119,1753589441609,-3600.3,0.00019178,2]
[375217121,1753589441619,-3600.3,0.00019178,2]
[375217123,1753589441629,-3600.3,0.00019178,2]
[375217125,1753589441639,-3600.3,0.00019178,2]
[375217127,1753589441648,-460.0,0.00019178,2]
[375217129,1753589441658,-460.0,0.00019178,2]
[375217131,1753589441669,-460.0,0.00019178,2]
[375217133,1753589441680,-655.53,0.00019178,2]
[375217135,1753589441690,-461.79731719,0.00019178,2]
[375217137,1753589441699,-460.0,0.00019178,2]
[375217139,1753589441711,-460.0,0.00019178,2]
[375217141,1753589441721,-464.20404737,0.00019178,2]
[375217143,1753589441731,-460.0,0.00019178,2]
[375217145,1753589441740,-460.0,0.00019178,2]
[375217147,1753589441749,-460.0,0.00019178,2]
[375217149,1753589441758,-460.0,0.00019178,2]
[375217151,1753589441768,-460.0,0.00019178,2]
[375217153,1753589441777,-460.0,0.00019178,2]
[375217155,1753589441787,-2186.89,0.00019178,2]
[375217157,1753589441797,-460.0,0.00019178,2]
[375217159,1753589441807,-462.51771978,0.00019178,2]
[375217161,1753589441816,-460.0,0.00019178,2]
[375217163,1753589441826,-460.0,0.00019178,2]
[375217165,1753589441835,-460.0,0.00019178,2]
[375217167,1753589441845,-460.0,0.00019178,2]
[375217169,1753589441854,-460.0,0.00019178,2]
[375217171,1753589441863,-516.85,0.00019178,2]
[375217173,1753589441873,-460.0,0.00019178,2]
[375217175,1753589441883,-460.0,0.00019178,2]
[375217177,1753589441894,-460.0,0.00019178,2]
[375217179,1753589441903,-460.0,0.00019178,2]
[375217181,1753589441913,-460.0,0.00019178,2]
[375217183,1753589441922,-460.0,0.00019178,2]
[375217185,1753589441931,-460.0,0.00019178,2]
[375217187,1753589441941,-460.0,0.00019178,2]
[375217189,1753589441950,-460.0,0.00019178,2]
[375217191,1753589441959,-460.0,0.00019178,2]
[375217193,1753589441971,-500.0,0.00019178,2]
[375217195,1753589441981,-460.0,0.00019178,2]
[375217197,1753589441991,-460.0,0.00019178,2]
[375217200,1753589442002,-460.0,0.00019178,2]
[375217202,1753589442011,-460.0,0.00019178,2]
[375217204,1753589442021,-460.0,0.00019178,2]
[375217206,1753589442031,-460.0,0.00019178,2]
[375217208,1753589442040,-460.0,0.00019178,2]
[375217210,1753589442050,-460.0,0.00019178,2]
[375217212,1753589442060,-1391.16,0.00019178,2]
[375217214,1753589442069,-247.71050629,0.00019178,2]
[375217216,1753589442079,-460.0,0.00019178,2]
[375217218,1753589442089,-501.84,0.00019178,2]
[375217220,1753589442098,-460.0,0.00019178,2]
[375217222,1753589442107,-460.0,0.00019178,2]
[375217224,1753589442117,-460.0,0.00019178,2]
[375217226,1753589442126,-462.88158425,0.00019178,2]
[375217228,1753589442135,-713.53,0.00019178,2]
[375217230,1753589442147,-460.0,0.00019178,2]
[375217232,1753589442156,-448.58665149,0.00019178,2]
[375217234,1753589442165,-460.0,0.00019178,2]
[375217236,1753589442176,-460.0,0.00019178,2]
[375217238,1753589442185,-573.09,0.00019178,2]
[375217240,1753589442195,-460.0,0.00019178,2]
[375217242,1753589442204,-460.0,0.00019178,2]
[375217244,1753589442213,-460.0,0.00019178,2]
[375217246,1753589442225,-496.37634098,0.00019178,2]
[375217247,1753589442235,-460.0,0.00019178,2]
[375217250,1753589442244,-468.25,0.00019178,2]
[375217252,1753589442255,-830.42,0.00019178,2]
[375217253,1753589442264,-466.54998195,0.00019178,2]
[375217255,1753589442274,-460.0,0.00019178,2]
[375217257,1753589442284,-460.0,0.00019178,2]
[375217259,1753589442294,-460.0,0.00019178,2]
[375217260,1753589442303,-460.0,0.00019178,2]
[375217261,1753589442313,-460.0,0.00019178,2]
[375217262,1753589442322,-460.0,0.00019178,2]
[375217263,1753589442331,-348.8079486,0.00019178,2]
[375217264,1753589442340,-880.58,0.00019178,2]
[375217265,1753589442350,-460.0,0.00019178,2]
[375217266,1753589442359,-460.0,0.00019178,2]
[375217267,1753589442367,-1468.31,0.00019178,2]
[375217268,1753589442377,-460.0,0.00019178,2]
[375217269,1753589442386,-460.0,0.00019178,2]
[375217271,1753589442396,-460.0,0.00019178,2]
[375217273,1753589442406,-630.25,0.00019178,2]
[375217275,1753589442415,-2341.47,0.00019178,2]
[375217277,1753589442425,-460.0,0.00019178,2]
[375217279,1753589442434,-462.13896883,0.00019178,2]
[375217281,1753589442444,-582.20758874,0.00019178,2]
[375217284,1753589442453,-460.0,0.00019178,2]
[375217285,1753589442463,-662.9,0.00019178,2]
[375217287,1753589442475,-623.3,0.00019178,2]
[375217289,1753589442484,-460.0,0.00019178,2]
[375217291,1753589442494,-515.87135275,0.00019178,2]
[375217293,1753589442504,-460.0,0.00019178,2]
[375217295,1753589442513,-460.0,0.00019178,2]
[375217297,1753589442522,-460.0,0.00019178,2]
[375217299,1753589442532,-1271.84472331,0.00019178,2]
[375217301,1753589442541,-195.821278,0.00019178,2]
[375217303,1753589442551,-4768.08728707,0.00019383,2]
[375217305,1753589442561,-1000.0,0.00019421,2]
[375217307,1753589442571,-645.23962453,0.00019421,2]
[375217311,1753589442581,-1000.0,0.00019421,2]
[375217313,1753589442591,-1000.0,0.00019421,2]
[375217315,1753589442600,-1001.1678831,0.00019421,2]
[375217317,1753589442610,-1000.0,0.00019421,2]
[375217319,1753589442619,-936.81858891,0.00019421,2]
[375217321,1753589442628,-1000.0,0.00019421,2]
[375217323,1753589442638,-1000.0,0.00019421,2]
[375217325,1753589442648,-1004.58738353,0.00019421,2]
[375217328,1753589442657,-460.0,0.00019431,2]
[375217331,1753589442666,-460.0,0.00019431,2]
[375217334,1753589442676,-460.0,0.00019431,2]
[375217337,1753589442685,-589.15513084,0.00019431,2]
[375217339,1753589442694,-460.0,0.00019431,2]
[375217342,1753589442704,-460.0,0.00019431,2]
[375217345,1753589442713,-2042.0,0.00019431,2]
[375217348,1753589442723,-460.0,0.00019431,2]
[375217351,1753589442732,-1446.08,0.00019431,2]
[375217354,1753589442741,-460.0,0.00019431,2]
[375217358,1753589442750,-668.49,0.00019431,2]
[375217362,1753589442759,-3600.3,0.00019451,2]
[375217365,1753589442769,-3600.3,0.00019451,2]
[375217368,1753589442778,-3600.3,0.00019451,2]
[375217370,1753589442787,-3600.3,0.00019451,2]
[375217372,1753589442798,-3600.3,0.00019451,2]
[375217374,1753589442807,-3600.3,0.00019451,2]
[375217376,1753589442816,-606.82841294,0.00019452,2]
[375217378,1753589442828,-3055.8,0.00019452,2]
[375217380,1753589442837,-460.0,0.00019452,2]
[375217382,1753589442847,-1199.48,0.00019452,2]
[375217384,1753589442856,-460.0,0.00019452,2]
[375217386,1753589442865,-460.0,0.00019452,2]
[375217388,1753589442875,-460.0,0.00019452,2]
[375217390,1753589442885,-460.0,0.00019452,2]
[375217392,1753589442894,-1298.09,0.00019452,2]
[375217394,1753589442904,-460.0,0.00019452,2]
[375217397,1753589442925,-560.15,0.00019452,2]
[375217399,1753589442936,-460.0,0.00019452,2]
[375217401,1753589442945,-460.0,0.00019452,2]
[375217403,1753589442954,-460.0,0.00019452,2]
[375217405,1753589442964,-460.0,0.00019452,2]
[375217407,1753589442974,-460.0,0.00019452,2]
[375217409,1753589442983,-465.55409708,0.00019452,2]
[375217411,1753589442993,-460.0,0.00019452,2]
[375217413,1753589443003,-571.84735363,0.00019452,2]
[375217415,1753589443013,-460.0,0.00019452,2]
[375217417,1753589443022,-460.0,0.00019452,2]
[375217419,1753589443034,-460.0,0.00019452,2]
[375217422,1753589443044,-322.8552139,0.00019452,2]
[375217424,1753589443054,-460.0,0.00019452,2]
[375217426,1753589443065,-460.0,0.00019452,2]
[375217428,1753589443075,-2185.81,0.00019452,2]
[375217430,1753589443085,-460.0,0.00019452,2]
[375217432,1753589443095,-460.0,0.00019452,2]
[375217434,1753589443104,-460.0,0.00019452,2]
[375217436,1753589443114,-580.59,0.00019452,2]
[375217438,1753589443123,-460.0,0.00019452,2]
[375217440,1753589443133,-460.0,0.00019452,2]
[375217442,1753589443144,-460.0,0.00019452,2]
[375217444,1753589443153,-460.0,0.00019452,2]
[375217446,1753589443163,-465.27497246,0.00019452,2]
[375217448,1753589443173,-929.08,0.00019452,2]
[375217450,1753589443183,-466.53206115,0.00019452,2]
[375217452,1753589443193,-460.0,0.00019452,2]
[375217454,1753589443203,-460.0,0.00019452,2]
[375217456,1753589443212,-658.12,0.00019452,2]
[375217458,1753589443222,-460.0,0.00019452,2]
[375217460,1753589443232,-539.85793514,0.00019452,2]
[375217462,1753589443242,-611.52,0.00019452,2]
[375217464,1753589443251,-460.0,0.00019452,2]
[375217466,1753589443261,-460.0,0.00019452,2]
[375217468,1753589443270,-460.0,0.00019452,2]
[375217470,1753589443280,-229.62567121,0.00019452,2]
[375217472,1753589443290,-460.0,0.00019452,2]
[375217474,1753589443300,-460.0,0.00019452,2]
[375217476,1753589443310,-461.87,0.00019452,2]
[375217479,1753589443320,-460.0,0.00019452,2]
[375217481,1753589443330,-460.0,0.00019452,2]
[375217483,1753589443340,-460.0,0.00019452,2]
[375217485,1753589443349,-460.0,0.00019452,2]
[375217487,1753589443358,-460.0,0.00019452,2]
[375217489,1753589443368,-373.78232676,0.00019452,2]
[375217491,1753589443380,-460.0,0.00019452,2]
[375217493,1753589443390,-460.0,0.00019452,2]
[375217496,1753589443399,-460.0,0.00019452,2]
[375217498,1753589443409,-1821.18,0.00019452,2]
[375217500,1753589443418,-807.39,0.00019452,2]
[375217502,1753589443428,-460.0,0.00019452,2]
[375217504,1753589443438,-460.0,0.00019452,2]
[375217506,1753589443447,-460.0,0.00019452,2]
[375217508,1753589443456,-845.12,0.00019452,2]
[375217510,1753589443469,-460.0,0.00019452,2]
[375217512,1753589443480,-460.0,0.00019452,2]
[375217514,1753589443489,-460.0,0.00019452,2]
[375217516,1753589443499,-460.0,0.00019452,2]
[375217518,1753589443509,-460.0,0.00019452,2]
[375217520,1753589443519,-460.0,0.00019452,2]
[375217522,1753589443529,-460.0,0.00019452,2]
[375217524,1753589443541,-460.0,0.00019452,2]
[375217526,1753589443550,-460.0,0.00019452,2]
[375217528,1753589443560,-460.0,0.00019452,2]
[375217530,1753589443570,-460.0,0.00019452,2]
[375217533,1753589443581,-3066.41,0.00019452,2]
[375217534,1753589443590,-460.0,0.00019452,2]
[375217536,1753589443600,-460.0,0.00019452,2]
[375217538,1753589443610,-467.69,0.00019452,2]
[375217541,1753589443620,-460.0,0.00019452,2]
[375217543,1753589443630,-460.0,0.00019452,2]
[375217545,1753589443640,-460.0,0.00019452,2]
[375217560,1753589443773,-327.9035012,0.00019452,2]
[375217563,1753589443785,-460.0,0.00019452,2]
[375217564,1753589443796,-460.0,0.00019452,2]
[375217567,1753589443806,-460.0,0.00019452,2]
[375217569,1753589443816,-460.0,0.00019452,2]
[375217571,1753589443825,-460.0,0.00019452,2]
[375217573,1753589443835,-460.0,0.00019452,2]
[375217575,1753589443844,-460.0,0.00019452,2]
[375217577,1753589443853,-460.0,0.00019452,2]
[375217579,1753589443863,-559.97,0.00019452,2]
[375217580,1753589443873,-460.0,0.00019452,2]
[375217582,1753589443882,-460.0,0.00019452,2]
[375217584,1753589443891,-460.0,0.00019452,2]
[375217586,1753589443901,-517.5769565,0.00019452,2]
[375217588,1753589443911,-460.0,0.00019452,2]
[375217591,1753589443920,-460.0,0.00019452,2]
[375217593,1753589443930,-460.0,0.00019452,2]
[375217595,1753589443939,-460.0,0.00019452,2]
[375217597,1753589443952,-460.0,0.00019452,2]
[375217599,1753589443961,-460.0,0.00019452,2]
[375217601,1753589443971,-460.0,0.00019452,2]
[375217603,1753589443980,-526.95,0.00019452,2]
[375217605,1753589443989,-460.0,0.00019452,2]
[375217607,1753589443999,-273.72809956,0.00019452,2]
[375217609,1753589444008,-460.0,0.00019452,2]
[375217611,1753589444018,-460.0,0.00019452,2]
[375217613,1753589444030,-792.91,0.00019452,2]
[375217615,1753589444041,-460.0,0.00019452,2]
[375217617,1753589444051,-460.0,0.00019452,2]
[375217619,1753589444060,-460.0,0.00019452,2]
[375217621,1753589444069,-460.0,0.00019452,2]
[375217623,1753589444078,-460.0,0.00019452,2]
[375217625,1753589444088,-460.0,0.00019452,2]
[375217627,1753589444097,-538.16046026,0.00019452,2]
[375217629,1753589444108,-460.0,0.00019452,2]
[375217631,1753589444118,-460.0,0.00019452,2]
[375217633,1753589444128,-460.0,0.00019452,2]
[375217635,1753589444137,-460.0,0.00019452,2]
[375217637,1753589444148,-460.0,0.00019452,2]
[375217639,1753589444157,-460.0,0.00019452,2]
[375217641,1753589444166,-460.0,0.00019452,2]
[375217643,1753589444175,-460.0,0.00019452,2]
[375217645,1753589444185,-460.0,0.00019452,2]
[375217647,1753589444194,-466.93479341,0.00019452,2]
[375217649,1753589444204,-460.0,0.00019452,2]
[375217651,1753589444213,-839.4,0.00019452,2]
[375217653,1753589444223,-460.0,0.00019452,2]
[375217655,1753589444232,-668.15,0.00019452,2]
[375217657,1753589444242,-460.0,0.00019452,2]
[375217659,1753589444252,-460.0,0.00019452,2]
[375217661,1753589444262,-460.0,0.00019452,2]
[375217663,1753589444271,-460.0,0.00019452,2]
[375217665,1753589444281,-460.0,0.00019452,2]
[375217667,1753589444292,-460.0,0.00019452,2]
[375217669,1753589444301,-460.0,0.00019452,2]
[375217672,1753589444310,-460.0,0.00019452,2]
[375217674,1753589444320,-460.0,0.00019452,2]
[375217675,1753589444329,-1889.59,0.00019452,2]
[375217677,1753589444338,-460.0,0.00019452,2]
[375217679,1753589444348,-460.0,0.00019452,2]
[375217681,1753589444357,-460.0,0.00019452,2]
[375217683,1753589444367,-685.05,0.00019452,2]
[375217685,1753589444376,-460.0,0.00019452,2]
[375217687,1753589444387,-460.0,0.00019452,2]
[375217690,1753589444396,-460.0,0.00019452,2]
[375217692,1753589444406,-460.0,0.00019452,2]
[375217694,1753589444415,-460.0,0.00019452,2]
[375217696,1753589444425,-460.0,0.00019452,2]
[375217698,1753589444435,-460.0,0.00019452,2]
[375217700,1753589444444,-460.0,0.00019452,2]
[375217702,1753589444454,-521.17,0.00019452,2]
[375217704,1753589444464,-460.0,0.00019452,2]
[375217706,1753589444474,-460.0,0.00019452,2]
[375217708,1753589444484,-603.99,0.00019452,2]
[375217709,1753589444493,-469.92,0.00019452,2]
[375217711,1753589444503,-460.0,0.00019452,2]
[375217713,1753589444513,-729.56,0.00019452,2]
[375217715,1753589444523,-555.53,0.00019452,2]
[375217717,1753589444534,-460.0,0.00019452,2]
[375217719,1753589444546,-460.0,0.00019452,2]
[375217721,1753589444557,-460.0,0.00019452,2]
[375217723,1753589444566,-460.0,0.00019452,2]
[375217726,1753589444576,-460.0,0.00019452,2]
[375217727,1753589444586,-460.0,0.00019452,2]
[375217729,1753589444595,-460.0,0.00019452,2]
[375217731,1753589444606,-460.0,0.00019452,2]
[375217733,1753589444618,-460.0,0.00019452,2]
[375217736,1753589444629,-471.33534777,0.00019452,2]
[375217738,1753589444639,-510.49061418,0.00019452,2]
[375217740,1753589444648,-460.0,0.00019452,2]
[375217741,1753589444658,-460.0,0.00019452,2]
[375217743,1753589444667,-2701.43,0.00019452,2]
[375217745,1753589444676,-776.0,0.00019452,2]
[375217748,1753589444686,-4829.23,0.00019452,2]
[375217749,1753589444696,-460.0,0.00019452,2]
[375217751,1753589444705,-735.29,0.00019452,2]
[375217754,1753589444715,-460.0,0.00019452,2]
[375217756,1753589444724,-460.0,0.00019452,2]
[375217758,1753589444733,-460.0,0.00019452,2]
[375217760,1753589444743,-930.6,0.00019452,2]
[375217762,1753589444752,-460.0,0.00019452,2]
[375217764,1753589444761,-945.52,0.00019452,2]
[375217766,1753589444771,-460.0,0.00019452,2]
[375217768,1753589444780,-460.0,0.00019452,2]
[375217770,1753589444790,-460.0,0.00019452,2]
[375217772,1753589444800,-665.33,0.00019452,2]
[375217774,1753589444809,-603.09,0.00019452,2]
[375217776,1753589444819,-460.0,0.00019452,2]
[375217778,1753589444828,-1000.32,0.00019452,2]
[375217780,1753589444837,-460.0,0.00019452,2]
[375217782,1753589444846,-460.0,0.00019452,2]
[375217784,1753589444856,-620.16,0.00019452,2]
[375217786,1753589444865,-460.0,0.00019452,2]
[375217788,1753589444874,-460.0,0.00019452,2]
[375217790,1753589444883,-460.0,0.00019452,2]
[375217792,1753589444893,-655.53,0.00019452,2]
[375217794,1753589444902,-460.0,0.00019452,2]
[375217796,1753589444911,-460.0,0.00019452,2]
[375217798,1753589444920,-460.0,0.00019452,2]
[375217800,1753589444929,-460.0,0.00019452,2]
[375217802,1753589444938,-460.0,0.00019452,2]
[375217804,1753589444950,-460.0,0.00019452,2]
[375217806,1753589444962,-2186.89,0.00019452,2]
[375217808,1753589444972,-460.0,0.00019452,2]
[375217810,1753589444981,-491.75682504,0.00019452,2]
[375217812,1753589444991,-460.0,0.00019452,2]
[375217814,1753589445000,-460.0,0.00019452,2]
[375217816,1753589445009,-460.0,0.00019452,2]
[375217818,1753589445020,-460.0,0.00019452,2]
[375217820,1753589445029,-516.85,0.00019452,2]
[375217822,1753589445039,-460.0,0.00019452,2]
[375217824,1753589445048,-460.0,0.00019452,2]
[375217826,1753589445058,-460.0,0.00019452,2]
[375217828,1753589445067,-460.0,0.00019452,2]
[375217830,1753589445077,-460.0,0.00019452,2]
[375217832,1753589445086,-460.0,0.00019452,2]
[375217834,1753589445095,-460.0,0.00019452,2]
[375217836,1753589445105,-460.0,0.00019452,2]
[375217837,1753589445115,-500.0,0.00019452,2]
[375217839,1753589445124,-460.0,0.00019452,2]
[375217841,1753589445134,-460.0,0.00019452,2]
[375217843,1753589445144,-460.0,0.00019452,2]
[375217846,1753589445154,-460.0,0.00019452,2]
[375217848,1753589445165,-460.0,0.00019452,2]
[375217850,1753589445174,-460.0,0.00019452,2]
[375217851,1753589445183,-460.0,0.00019452,2]
[375217853,1753589445192,-460.0,0.00019452,2]
[375217855,1753589445201,-1391.16,0.00019452,2]
[375217857,1753589445210,-460.0,0.00019452,2]
[375217859,1753589445220,-501.84,0.00019452,2]
[375217861,1753589445230,-460.0,0.00019452,2]
[375217863,1753589445239,-460.0,0.00019452,2]
[375217865,1753589445248,-713.53,0.00019452,2]
[375217867,1753589445257,-460.0,0.00019452,2]
[375217869,1753589445268,-460.0,0.00019452,2]
[375217871,1753589445277,-460.0,0.00019452,2]
[375217873,1753589445286,-573.09,0.00019452,2]
[375217875,1753589445297,-460.0,0.00019452,2]
[375217877,1753589445307,-460.0,0.00019452,2]
[375217879,1753589445317,-460.0,0.00019452,2]
[375217882,1753589445327,-460.0,0.00019452,2]
[375217884,1753589445336,-830.42,0.00019452,2]
[375217885,1753589445345,-460.0,0.00019452,2]
[375217887,1753589445355,-468.25,0.00019452,2]
[375217889,1753589445365,-460.0,0.00019452,2]
[375217892,1753589445374,-460.0,0.00019452,2]
[375217894,1753589445384,-460.0,0.00019452,2]
[375217895,1753589445393,-460.0,0.00019452,2]
[375217897,1753589445403,-460.0,0.00019452,2]
[375217899,1753589445412,-880.58,0.00019452,2]
[375217902,1753589445422,-460.0,0.00019452,2]
[375217904,1753589445431,-1468.31,0.00019452,2]
[375217905,1753589445441,-460.0,0.00019452,2]
[375217908,1753589445450,-460.0,0.00019452,2]
[375217909,1753589445459,-630.25,0.00019452,2]
[375217911,1753589445471,-2341.47,0.00019452,2]
[375217913,1753589445480,-460.0,0.00019452,2]
[375217915,1753589445490,-464.64833957,0.00019452,2]
[375217917,1753589445499,-623.3,0.00019452,2]
[375217919,1753589445509,-662.9,0.00019452,2]
[375217921,1753589445520,-460.0,0.00019452,2]
[375217923,1753589445529,-460.0,0.00019452,2]
[375217925,1753589445539,-460.0,0.00019452,2]
[375217927,1753589445551,-174.78782039,0.00019467,2]
[375217929,1753589445561,-500.89002696,0.00019473,2]
[375217931,1753589445571,-3600.3,0.0001952,2]
[375217933,1753589445581,-3600.3,0.0001952,2]
[375217935,1753589445591,-3600.3,0.0001952,2]
[375217937,1753589445600,-3600.3,0.0001952,2]
[375217939,1753589445609,-3600.329668,0.0001952,2]
[375217941,1753589445620,-151.0,0.000196,2]
[375217943,1753589445629,-4768.08728707,0.00019624,2]
[375217945,1753589445639,-150.0,0.00019667,2]
[375217947,1753589445649,-407.95,0.00019677,2]
[375217950,1753589445659,-460.0,0.00019705,2]
[375217952,1753589445669,-460.0,0.00019705,2]
[375217954,1753589445678,-460.0,0.00019705,2]
[375217956,1753589445688,-460.0,0.00019705,2]
[375217958,1753589445698,-2042.0,0.00019705,2]
[375217960,1753589445707,-343.64715844,0.00019705,2]
[375217962,1753589445716,-1446.08,0.00019705,2]
[375217964,1753589445725,-460.0,0.00019705,2]
[375217966,1753589445734,-668.49,0.00019705,2]
[375217968,1753589445744,-440.60030422,0.00019721,2]
[375217970,1753589445753,-1000.0,0.00019721,2]
[375217972,1753589445762,-500.0,0.00019721,2]
[375217974,1753589445772,-500.0,0.00019721,2]
[375217975,1753589445781,-1000.0,0.00019721,2]
[375217978,1753589445791,-3055.8,0.00019726,2]
[375217979,1753589445801,-547.83651058,0.00019726,2]
[375217981,1753589445811,-1199.48,0.00019726,2]
[375217983,1753589445821,-460.0,0.00019726,2]
[375217986,1753589445831,-1298.09,0.00019726,2]
[375217988,1753589445840,-560.15,0.00019726,2]
[375217990,1753589445849,-460.0,0.00019726,2]
[375218001,1753589445947,-460.0,0.00019726,2]
[375218003,1753589445957,-460.0,0.00019726,2]
[375218005,1753589445966,-460.0,0.00019726,2]
[375218007,1753589445978,-460.0,0.00019726,2]
[375218009,1753589445987,-460.0,0.00019726,2]
[375218011,1753589445997,-460.0,0.00019726,2]
[375218013,1753589446006,-460.0,0.00019726,2]
[375218015,1753589446015,-2185.81,0.00019726,2]
[375218017,1753589446024,-460.0,0.00019726,2]
[375218019,1753589446033,-460.0,0.00019726,2]
[375218021,1753589446043,-460.0,0.00019726,2]
[375218023,1753589446055,-580.59,0.00019726,2]
[375218025,1753589446064,-460.0,0.00019726,2]
[375218027,1753589446074,-460.0,0.00019726,2]
[375218029,1753589446083,-460.0,0.00019726,2]
[375218031,1753589446092,-929.08,0.00019726,2]
[375218033,1753589446101,-333.81598796,0.00019726,2]
[375218035,1753589446110,-460.0,0.00019726,2]
[375218037,1753589446119,-658.12,0.00019726,2]
[375218039,1753589446128,-460.0,0.00019726,2]
[375218041,1753589446137,-611.52,0.00019726,2]
[375218043,1753589446146,-460.0,0.00019726,2]
[375218045,1753589446155,-460.0,0.00019726,2]
[375218047,1753589446165,-460.0,0.00019726,2]
[375218049,1753589446174,-460.0,0.00019726,2]
[375218051,1753589446183,-460.0,0.00019726,2]
[375218053,1753589446192,-461.87,0.00019726,2]
[375218055,1753589446201,-460.0,0.00019726,2]
[375218057,1753589446211,-460.0,0.00019726,2]
[375218059,1753589446220,-460.0,0.00019726,2]
[375218061,1753589446231,-460.0,0.00019726,2]
[375218063,1753589446240,-460.0,0.00019726,2]
[375218065,1753589446250,-460.0,0.00019726,2]
[375218067,1753589446260,-460.0,0.00019726,2]